[Event "Elite Hotels Open 2023"]
[Site "Elite Stadshotellet, Kungsgatan 6, Vaxjo, Sweden"]
[Date "2023.02.11"]
[Round "6.17"]
[White "Dingertz, Erik"]
[Black "Sevastianov, Andrii"]
[Result "1/2-1/2"]
[TimeControl "15 minutes + 5 seconds per move from move one (Round 1 - 4) / 90 minutes + 30 seconds per move from move one (Round 5 - 8)"]
[WhiteFideId "1741578"]
[BlackFideId "1730240"]
[WhiteElo "2017"]
[BlackElo "2160"]

1. c4 {[%clk 01:30:55]} {[%emt 00:00:05]} e5 {[%clk 01:30:37]} {[%emt
00:00:23]} 2. g3 {[%clk 01:31:17]} {[%emt 00:00:08]} Nc6 {[%clk 01:30:51]}
{[%emt 00:00:15]} 3. Nc3 {[%clk 01:31:36]} {[%emt 00:00:11]} Nf6 {[%clk
01:31:01]} {[%emt 00:00:21]} 4. Bg2 {[%clk 01:32:00]} {[%emt 00:00:06]} Bc5
{[%clk 01:31:12]} {[%emt 00:00:18]} 5. d3 {[%clk 01:31:55]} {[%emt 00:00:36]}
d6 {[%clk 01:30:16]} {[%emt 00:01:26]} 6. a3 {[%clk 01:32:17]} {[%emt
00:00:09]} a6 {[%clk 01:30:18]} {[%emt 00:00:27]} 7. b4 {[%clk 01:32:29]}
{[%emt 00:00:19]} Ba7 {[%clk 01:30:39]} {[%emt 00:00:08]} 8. Bb2 {[%clk
01:32:49]} {[%emt 00:00:10]} Be6 {[%clk 01:29:44]} {[%emt 00:01:24]} 9. Nf3
{[%clk 01:29:53]} {[%emt 00:03:27]} Qd7 {[%clk 01:27:41]} {[%emt 00:02:33]} 10.
h3 {[%clk 01:26:22]} {[%emt 00:04:03]} h6 {[%clk 01:24:10]} {[%emt 00:04:00]}
11. Nd2 {[%clk 01:26:27]} {[%emt 00:00:25]} Rb8 {[%clk 01:20:10]} {[%emt
00:04:29]} 12. Nd5 {[%clk 01:25:38]} {[%emt 00:01:19]} Nh7 {[%clk 01:19:22]}
{[%emt 00:01:19]} 13. Rc1 {[%clk 01:25:19]} {[%emt 00:00:50]} Ne7 {[%clk
01:16:08]} {[%emt 00:03:42]} 14. Nb3 {[%clk 01:23:31]} {[%emt 00:02:19]} O-O
{[%clk 01:07:24]} {[%emt 00:09:14]} 15. d4 {[%clk 01:22:30]} {[%emt 00:01:31]}
Ng6 {[%clk 01:03:34]} {[%emt 00:04:20]} 16. h4 {[%clk 01:04:45]} {[%emt
00:18:16]} c6 {[%clk 00:55:23]} {[%emt 00:08:41]} 17. h5 {[%clk 01:05:04]}
{[%emt 00:00:10]} cxd5 {[%clk 00:49:36]} {[%emt 00:06:18]} 18. hxg6 {[%clk
01:02:53]} {[%emt 00:02:41]} fxg6 {[%clk 00:49:31]} {[%emt 00:00:35]} 19. cxd5
{[%clk 01:03:12]} {[%emt 00:00:12]} Qf7 {[%clk 00:45:52]} {[%emt 00:04:07]} 20.
O-O {[%clk 01:01:27]} {[%emt 00:02:15]} Bxd5 {[%clk 00:39:05]} {[%emt
00:07:16]} 21. Bxd5 {[%clk 01:01:49]} {[%emt 00:00:09]} Qxd5 {[%clk 00:39:28]}
{[%emt 00:00:07]} 22. dxe5 {[%clk 01:02:16]} {[%emt 00:00:03]} Qxd1 {[%clk
00:39:24]} {[%emt 00:00:35]} 23. Rcxd1 {[%clk 01:02:36]} {[%emt 00:00:10]} dxe5
{[%clk 00:38:50]} {[%emt 00:01:04]} 24. Bxe5 {[%clk 01:02:31]} {[%emt
00:00:35]} Rbe8 {[%clk 00:39:00]} {[%emt 00:00:19]} 25. Bd6 {[%clk 01:02:54]}
{[%emt 00:00:09]} Rf7 {[%clk 00:39:16]} {[%emt 00:00:12]} 26. e3 {[%clk
01:03:07]} {[%emt 00:00:18]} Ng5 {[%clk 00:38:31]} {[%emt 00:01:14]} 27. Nc5
{[%clk 01:02:36]} {[%emt 00:01:02]} Ne4 {[%clk 00:37:09]} {[%emt 00:01:51]} 28.
Nxe4 {[%clk 01:02:51]} {[%emt 00:00:17]} Rxe4 {[%clk 00:37:31]} {[%emt
00:00:07]} 29. Rc1 {[%clk 01:02:49]} {[%emt 00:00:31]} Rd7 {[%clk 00:33:36]}
{[%emt 00:04:24]} 30. Bc5 {[%clk 00:56:56]} {[%emt 00:06:26]} Bxc5 {[%clk
00:33:29]} {[%emt 00:00:35]} 1/2-1/2

[Event "Elite Hotels Open 2023"]
[Site "Elite Stadshotellet, Kungsgatan 6, Vaxjo, Sweden"]
[Date "2023.02.11"]
[Round "6.18"]
[White "Karlsson, Stefan"]
[Black "Lindholm, Gustav"]
[Result "0-1"]
[TimeControl "15 minutes + 5 seconds per move from move one (Round 1 - 4) / 90 minutes + 30 seconds per move from move one (Round 5 - 8)"]
[WhiteFideId "1771183"]
[BlackFideId "1736515"]
[WhiteElo "1778"]
[BlackElo "2128"]

1. e4 {[%clk 01:30:58]} {[%emt 00:00:01]} c5 {[%clk 01:30:56]} {[%emt
00:00:05]} 2. Nf3 {[%clk 01:31:25]} {[%emt 00:00:03]} d6 {[%clk 01:31:23]}
{[%emt 00:00:03]} 3. c3 {[%clk 01:31:49]} {[%emt 00:00:06]} Nf6 {[%clk
01:31:47]} {[%emt 00:00:05]} 4. Be2 {[%clk 01:32:16]} {[%emt 00:00:03]} g6
{[%clk 01:32:06]} {[%emt 00:00:10]} 5. O-O {[%clk 01:32:39]} {[%emt 00:00:09]}
Bg7 {[%clk 01:32:28]} {[%emt 00:00:07]} 6. Bb5+ {[%clk 01:33:04]} {[%emt
00:00:05]} Nc6 {[%clk 01:32:44]} {[%emt 00:00:14]} 7. d4 {[%clk 01:33:28]}
{[%emt 00:00:06]} O-O {[%clk 01:33:03]} {[%emt 00:00:11]} 8. Re1 {[%clk
01:30:21]} {[%emt 00:03:36]} cxd4 {[%clk 01:27:17]} {[%emt 00:06:17]} 9. cxd4
{[%clk 01:30:31]} {[%emt 00:00:20]} Bg4 {[%clk 01:26:18]} {[%emt 00:01:29]} 10.
Bxc6 {[%clk 01:30:23]} {[%emt 00:00:38]} bxc6 {[%clk 01:26:41]} {[%emt
00:00:07]} 11. h3 {[%clk 01:30:10]} {[%emt 00:00:43]} Bxf3 {[%clk 01:26:16]}
{[%emt 00:00:56]} 12. Qxf3 {[%clk 01:29:57]} {[%emt 00:00:41]} Qb6 {[%clk
01:24:28]} {[%emt 00:02:19]} 13. Rd1 {[%clk 01:26:16]} {[%emt 00:04:10]} Nd7
{[%clk 01:23:00]} {[%emt 00:01:58]} 14. Qe3 {[%clk 01:25:17]} {[%emt 00:01:30]}
c5 {[%clk 01:22:02]} {[%emt 00:01:29]} 15. d5 {[%clk 01:13:01]} {[%emt
00:12:45]} Bxb2 {[%clk 01:20:00]} {[%emt 00:02:32]} 16. Bxb2 {[%clk 01:13:26]}
{[%emt 00:00:05]} Qxb2 {[%clk 01:20:25]} {[%emt 00:00:05]} 17. Na3 {[%clk
01:12:51]} {[%emt 00:01:05]} Rab8 {[%clk 01:16:59]} {[%emt 00:03:57]} 18. Nc4
{[%clk 01:11:04]} {[%emt 00:02:16]} Qb4 {[%clk 01:12:55]} {[%emt 00:04:34]} 19.
Rac1 {[%clk 01:09:38]} {[%emt 00:01:56]} Nb6 {[%clk 01:04:02]} {[%emt
00:09:24]} 20. Nxb6 {[%clk 01:07:04]} {[%emt 00:03:04]} axb6 {[%clk 01:03:08]}
{[%emt 00:01:25]} 21. e5 {[%clk 01:05:59]} {[%emt 00:01:33]} Qb2 {[%clk
01:01:11]} {[%emt 00:02:26]} 22. exd6 {[%clk 01:05:52]} {[%emt 00:00:37]} exd6
{[%clk 01:01:35]} {[%emt 00:00:05]} 23. Qe7 {[%clk 01:05:40]} {[%emt 00:00:43]}
Qe5 {[%clk 01:00:17]} {[%emt 00:01:48]} 24. Qxe5 {[%clk 01:04:54]} {[%emt
00:01:17]} dxe5 {[%clk 01:00:43]} {[%emt 00:00:04]} 25. f3 {[%clk 01:04:11]}
{[%emt 00:01:12]} Rfd8 {[%clk 01:00:58]} {[%emt 00:00:15]} 26. Kf2 {[%clk
01:03:37]} {[%emt 00:01:04]} Rd6 {[%clk 01:01:23]} {[%emt 00:00:06]} 27. Ke3
{[%clk 01:03:43]} {[%emt 00:00:24]} f5 {[%clk 01:01:47]} {[%emt 00:00:05]} 28.
Rb1 {[%clk 01:02:46]} {[%emt 00:01:26]} Ra8 {[%clk 01:01:03]} {[%emt 00:01:15]}
29. Rb2 {[%clk 01:01:45]} {[%emt 00:01:30]} Ra3+ {[%clk 01:01:25]} {[%emt
00:00:09]} 30. Ke2 {[%clk 01:02:05]} {[%emt 00:00:09]} Kf7 {[%clk 01:01:26]}
{[%emt 00:00:29]} 31. Rdd2 {[%clk 01:00:07]} {[%emt 00:02:28]} Kf6 {[%clk
01:00:49]} {[%emt 00:01:07]} 32. h4 {[%clk 01:00:04]} {[%emt 00:00:33]} e4
{[%clk 01:00:47]} {[%emt 00:00:33]} 33. f4 {[%clk 00:59:23]} {[%emt 00:01:11]}
h6 {[%clk 01:00:37]} {[%emt 00:00:40]} 34. Rb3 {[%clk 00:59:05]} {[%emt
00:00:47]} Rxb3 {[%clk 01:00:49]} {[%emt 00:00:19]} 35. axb3 {[%clk 00:59:29]}
{[%emt 00:00:05]} Ke7 {[%clk 00:59:54]} {[%emt 00:01:25]} 36. Kd1 {[%clk
00:59:19]} {[%emt 00:00:40]} Rd8 {[%clk 01:00:07]} {[%emt 00:00:18]} 37. Kc2
{[%clk 00:59:11]} {[%emt 00:00:37]} Kd6 {[%clk 01:00:28]} {[%emt 00:00:09]} 38.
Kc3 {[%clk 00:59:01]} {[%emt 00:00:39]} Ra8 {[%clk 01:00:09]} {[%emt 00:00:50]}
39. Kc4 {[%clk 00:59:02]} {[%emt 00:00:28]} Ra5 {[%clk 01:00:24]} {[%emt
00:00:15]} 40. g3 {[%clk 00:59:04]} {[%emt 00:00:28]} b5+ {[%clk 01:00:44]}
{[%emt 00:00:11]} 41. Kc3 {[%clk 00:59:29]} {[%emt 00:00:05]} Ra1 {[%clk
01:00:55]} {[%emt 00:00:19]} 42. b4 {[%clk 00:59:06]} {[%emt 00:00:53]} Ra3+
{[%clk 01:01:12]} {[%emt 00:00:13]} 0-1

[Event "Elite Hotels Open 2023"]
[Site "Elite Stadshotellet, Kungsgatan 6, Vaxjo, Sweden"]
[Date "2023.02.12"]
[Round "7.1"]
[White "Abdrlauf, Elham"]
[Black "Galperin, Platon"]
[Result "0-1"]
[TimeControl "15 minutes + 5 seconds per move from move one (Round 1 - 4) / 90 minutes + 30 seconds per move from move one (Round 5 - 8)"]
[WhiteTitle "IM"]
[BlackTitle "GM"]
[WhiteFideId "1533533"]
[BlackFideId "14165414"]
[WhiteElo "2527"]
[BlackElo "2538"]

1. Nf3 {[%clk 01:24:27]} {[%emt 00:06:32]} Nf6 {[%clk 01:29:12]} {[%emt
00:01:49]} 2. d4 {[%clk 01:24:15]} {[%emt 00:00:42]} g6 {[%clk 01:29:36]}
{[%emt 00:00:06]} 3. Bf4 {[%clk 01:24:37]} {[%emt 00:00:07]} Bg7 {[%clk
01:29:59]} {[%emt 00:00:08]} 4. Nbd2 {[%clk 01:25:01]} {[%emt 00:00:06]} O-O
{[%clk 01:29:52]} {[%emt 00:00:36]} 5. e4 {[%clk 01:25:27]} {[%emt 00:00:04]}
d6 {[%clk 01:26:44]} {[%emt 00:03:39]} 6. Be2 {[%clk 01:25:18]} {[%emt
00:00:37]} Nc6 {[%clk 01:26:40]} {[%emt 00:00:34]} 7. c3 {[%clk 01:16:27]}
{[%emt 00:09:23]} Nh5 {[%clk 01:19:05]} {[%emt 00:08:04]} 8. Be3 {[%clk
01:10:50]} {[%emt 00:06:07]} e5 {[%clk 01:18:41]} {[%emt 00:00:55]} 9. O-O
{[%clk 01:04:20]} {[%emt 00:06:58]} h6 {[%clk 01:06:53]} {[%emt 00:12:19]} 10.
dxe5 {[%clk 00:56:16]} {[%emt 00:08:34]} dxe5 {[%clk 01:07:09]} {[%emt
00:00:14]} 11. b4 {[%clk 00:47:44]} {[%emt 00:09:03]} Nf4 {[%clk 00:55:48]}
{[%emt 00:11:50]} 12. Bb5 {[%clk 00:41:12]} {[%emt 00:07:02]} Qf6 {[%clk
00:54:15]} {[%emt 00:02:04]} 13. Bxf4 {[%clk 00:22:17]} {[%emt 00:19:26]} exf4
{[%clk 00:54:15]} {[%emt 00:00:30]} 14. Rc1 {[%clk 00:20:48]} {[%emt 00:02:00]}
a5 {[%clk 00:53:03]} {[%emt 00:01:42]} 15. a4 {[%clk 00:19:46]} {[%emt
00:01:31]} Rd8 {[%clk 00:47:48]} {[%emt 00:05:45]} 16. Qe2 {[%clk 00:15:24]}
{[%emt 00:04:53]} axb4 {[%clk 00:41:25]} {[%emt 00:06:53]} 17. cxb4 {[%clk
00:15:32]} {[%emt 00:00:21]} Qb2 {[%clk 00:23:53]} {[%emt 00:18:02]} 18. Rb1
{[%clk 00:08:23]} {[%emt 00:07:39]} Qa2 {[%clk 00:23:54]} {[%emt 00:00:28]} 19.
Rfd1 {[%clk 00:04:12]} {[%emt 00:04:43]} Bg4 {[%clk 00:22:42]} {[%emt
00:01:42]} 20. h3 {[%clk 00:02:49]} {[%emt 00:01:52]} Bh5 {[%clk 00:20:12]}
{[%emt 00:03:00]} 21. Bxc6 {[%clk 00:00:34]} {[%emt 00:02:46]} bxc6 {[%clk
00:20:36]} {[%emt 00:00:06]} 22. Qc4 {[%clk 00:00:34]} {[%emt 00:00:29]} Qxa4
{[%clk 00:20:15]} {[%emt 00:00:51]} 23. Rdc1 {[%clk 00:00:50]} {[%emt
00:00:14]} Ra6 {[%clk 00:12:31]} {[%emt 00:08:15]} 24. e5 {[%clk 00:01:17]}
{[%emt 00:00:03]} g5 {[%clk 00:12:05]} {[%emt 00:00:56]} 25. Ne4 {[%clk
00:01:38]} {[%emt 00:00:09]} Rb6 {[%clk 00:11:45]} {[%emt 00:00:51]} 26. Nd4
{[%clk 00:00:33]} {[%emt 00:01:34]} Bg6 {[%clk 00:11:02]} {[%emt 00:01:13]} 27.
Nc5 {[%clk 00:00:33]} {[%emt 00:00:30]} Qa3 {[%clk 00:10:46]} {[%emt 00:00:45]}
28. Ra1 {[%clk 00:00:31]} {[%emt 00:00:32]} Qb2 {[%clk 00:10:59]} {[%emt
00:00:17]} 29. Ndb3 {[%clk 00:00:38]} {[%emt 00:00:24]} Qxe5 {[%clk 00:10:53]}
{[%emt 00:00:36]} 30. Rd1 {[%clk 00:00:50]} {[%emt 00:00:18]} Rd5 {[%clk
00:08:57]} {[%emt 00:02:26]} 31. Rac1 {[%clk 00:00:32]} {[%emt 00:00:49]} Qd6
{[%clk 00:08:31]} {[%emt 00:00:55]} 32. Re1 {[%clk 00:00:46]} {[%emt 00:00:16]}
Rb8 {[%clk 00:08:47]} {[%emt 00:00:13]} 33. Qa6 {[%clk 00:00:36]} {[%emt
00:00:41]} f3 {[%clk 00:06:28]} {[%emt 00:02:48]} 34. Na5 {[%clk 00:00:35]}
{[%emt 00:00:31]} Rxb4 {[%clk 00:04:46]} {[%emt 00:02:12]} 35. Nxc6 {[%clk
00:00:44]} {[%emt 00:00:21]} Rxc5 {[%clk 00:04:08]} {[%emt 00:01:09]} 36. Rxc5
{[%clk 00:00:32]} {[%emt 00:00:42]} Qxc5 {[%clk 00:02:12]} {[%emt 00:02:26]} 37.
Ne7+ {[%clk 00:00:35]} {[%emt 00:00:27]} Kh7 {[%clk 00:02:35]} {[%emt
00:00:07]} 38. Qc8 {[%clk 00:00:32]} {[%emt 00:00:33]} h5 {[%clk 00:02:53]}
{[%emt 00:00:12]} 39. Qg8+ {[%clk 00:00:34]} {[%emt 00:00:27]} Kh6 {[%clk
00:03:18]} {[%emt 00:00:05]} 40. Qa8 {[%clk 00:00:31]} {[%emt 00:00:33]} Rb1
{[%clk 00:01:23]} {[%emt 00:02:25]} 41. Rxb1 {[%clk 00:00:46]} {[%emt
00:00:15]} Bxb1 {[%clk 00:01:26]} {[%emt 00:00:28]} 42. Qe8 {[%clk 00:00:54]}
{[%emt 00:00:21]} Qc1+ {[%clk 00:01:40]} {[%emt 00:00:16]} 43. Kh2 {[%clk
00:01:24]} Be5+ {[%clk 00:02:04]} {[%emt 00:00:07]} 44. g3 {[%clk 00:01:52]}
{[%emt 00:00:02]} Bxg3+ {[%clk 00:02:25]} {[%emt 00:00:09]} 0-1

[Event "Elite Hotels Open 2023"]
[Site "Elite Stadshotellet, Kungsgatan 6, Vaxjo, Sweden"]
[Date "2023.02.12"]
[Round "7.2"]
[White "Sivuk, Vitaly"]
[Black "Jepson, Christian"]
[Result "1/2-1/2"]
[TimeControl "15 minutes + 5 seconds per move from move one (Round 1 - 4) / 90 minutes + 30 seconds per move from move one (Round 5 - 8)"]
[WhiteTitle "GM"]
[BlackTitle "IM"]
[WhiteFideId "14116502"]
[BlackFideId "1701185"]
[WhiteElo "2530"]
[BlackElo "2395"]

1. d4 {[%clk 01:28:12]} {[%emt 00:00:42]} d6 {[%clk 01:30:54]} {[%emt
00:00:07]} 2. e4 {[%clk 01:28:13]} {[%emt 00:00:28]} Nf6 {[%clk 01:31:16]}
{[%emt 00:00:08]} 3. Nc3 {[%clk 01:28:34]} {[%emt 00:00:08]} e5 {[%clk
01:31:41]} {[%emt 00:00:05]} 4. Nf3 {[%clk 01:28:49]} {[%emt 00:00:15]} Nbd7
{[%clk 01:32:06]} {[%emt 00:00:06]} 5. Bc4 {[%clk 01:29:08]} {[%emt 00:00:11]}
Be7 {[%clk 01:32:26]} {[%emt 00:00:10]} 6. a4 {[%clk 01:29:23]} {[%emt
00:00:15]} O-O {[%clk 01:32:12]} {[%emt 00:00:44]} 7. O-O {[%clk 01:29:46]}
{[%emt 00:00:07]} exd4 {[%clk 01:31:43]} {[%emt 00:01:00]} 8. Nxd4 {[%clk
01:28:23]} {[%emt 00:01:52]} Ne5 {[%clk 01:31:49]} {[%emt 00:00:25]} 9. Ba2
{[%clk 01:27:08]} {[%emt 00:01:45]} Nc6 {[%clk 01:31:37]} {[%emt 00:00:42]} 10.
h3 {[%clk 01:20:03]} {[%emt 00:07:35]} Nb4 {[%clk 01:30:06]} {[%emt 00:02:02]}
11. Bb3 {[%clk 01:16:18]} {[%emt 00:04:14]} c5 {[%clk 01:30:09]} {[%emt
00:00:28]} 12. Nde2 {[%clk 01:16:22]} {[%emt 00:00:25]} Be6 {[%clk 01:25:49]}
{[%emt 00:04:51]} 13. Nf4 {[%clk 01:15:59]} {[%emt 00:00:52]} Bxb3 {[%clk
01:25:36]} {[%emt 00:00:43]} 14. cxb3 {[%clk 01:16:27]} {[%emt 00:00:02]} Re8
{[%clk 01:23:51]} {[%emt 00:02:15]} 15. f3 {[%clk 01:11:14]} {[%emt 00:05:42]}
Qb6 {[%clk 00:54:17]} {[%emt 00:30:05]} 16. g4 {[%clk 01:05:02]} {[%emt
00:06:42]} Qc6 {[%clk 00:40:26]} {[%emt 00:14:22]} 17. g5 {[%clk 01:02:22]}
{[%emt 00:03:09]} Nd7 {[%clk 00:40:51]} {[%emt 00:00:05]} 18. h4 {[%clk
01:02:45]} {[%emt 00:00:07]} f6 {[%clk 00:30:49]} {[%emt 00:10:32]} 19. Nfd5
{[%clk 00:50:14]} {[%emt 00:13:00]} fxg5 {[%clk 00:28:12]} {[%emt 00:03:08]} 20.
hxg5 {[%clk 00:50:28]} {[%emt 00:00:15]} Nb6 {[%clk 00:27:23]} {[%emt
00:01:19]} 21. f4 {[%clk 00:36:39]} {[%emt 00:14:19]} N6xd5 {[%clk 00:25:50]}
{[%emt 00:02:05]} 22. exd5 {[%clk 00:35:42]} {[%emt 00:01:25]} Qd7 {[%clk
00:26:00]} {[%emt 00:00:21]} 23. f5 {[%clk 00:35:01]} {[%emt 00:01:10]} Rf8
{[%clk 00:26:22]} {[%emt 00:00:08]} 24. f6 {[%clk 00:27:59]} {[%emt 00:07:32]}
gxf6 {[%clk 00:24:44]} {[%emt 00:02:09]} 25. Qh5 {[%clk 00:28:17]} {[%emt
00:00:11]} fxg5 {[%clk 00:21:47]} {[%emt 00:03:27]} 26. Bxg5 {[%clk 00:28:30]}
{[%emt 00:00:17]} Bxg5 {[%clk 00:20:10]} {[%emt 00:02:08]} 27. Qxg5+ {[%clk
00:28:54]} {[%emt 00:00:05]} Qg7 {[%clk 00:18:18]} {[%emt 00:02:23]} 28. Qxg7+
{[%clk 00:29:09]} {[%emt 00:00:15]} Kxg7 {[%clk 00:18:45]} {[%emt 00:00:03]} 29.
Nb5 {[%clk 00:29:29]} {[%emt 00:00:09]} Nxd5 {[%clk 00:17:48]} {[%emt
00:01:27]} 30. Nxd6 {[%clk 00:29:52]} {[%emt 00:00:06]} b6 {[%clk 00:17:46]}
{[%emt 00:00:34]} 31. a5 {[%clk 00:30:12]} {[%emt 00:00:09]} Rad8 {[%clk
00:15:38]} {[%emt 00:02:39]} 32. axb6 {[%clk 00:29:23]} {[%emt 00:01:19]} Rxf1+
{[%clk 00:14:47]} {[%emt 00:01:21]} 33. Kxf1 {[%clk 00:29:45]} {[%emt
00:00:08]} axb6 {[%clk 00:15:06]} {[%emt 00:00:12]} 34. Ra7+ {[%clk 00:30:05]}
{[%emt 00:00:09]} Kg6 {[%clk 00:12:18]} {[%emt 00:03:18]} 35. Nc4 {[%clk
00:30:19]} {[%emt 00:00:16]} Rf8+ {[%clk 00:11:34]} {[%emt 00:01:14]} 36. Kg1
{[%clk 00:30:33]} {[%emt 00:00:16]} Rf6 {[%clk 00:11:17]} {[%emt 00:00:48]} 37.
Rd7 {[%clk 00:30:05]} {[%emt 00:00:57]} Nf4 {[%clk 00:10:51]} {[%emt 00:00:55]}
38. Rb7 {[%clk 00:30:25]} {[%emt 00:00:11]} Nd5 {[%clk 00:06:59]} {[%emt
00:04:23]} 39. Rd7 {[%clk 00:30:47]} {[%emt 00:00:07]} Nf4 {[%clk 00:06:42]}
{[%emt 00:00:47]} 40. Rb7 {[%clk 00:31:12]} {[%emt 00:00:04]} Nd5 {[%clk
00:04:07]} {[%emt 00:03:06]} 41. Rd7 {[%clk 00:31:17]} {[%emt 00:00:25]}
1/2-1/2

[Event "Elite Hotels Open 2023"]
[Site "Elite Stadshotellet, Kungsgatan 6, Vaxjo, Sweden"]
[Date "2023.02.12"]
[Round "7.3"]
[White "Golubka, Petro"]
[Black "Blomqvist, Erik"]
[Result "1/2-1/2"]
[TimeControl "15 minutes + 5 seconds per move from move one (Round 1 - 4) / 90 minutes + 30 seconds per move from move one (Round 5 - 8)"]
[WhiteTitle "GM"]
[BlackTitle "GM"]
[WhiteFideId "14114224"]
[BlackFideId "1709437"]
[WhiteElo "2363"]
[BlackElo "2510"]

1. e4 {[%clk 01:18:12]} {[%emt 00:12:48]} c5 {[%clk 01:30:51]} {[%emt
00:00:09]} 2. Nf3 {[%clk 01:18:37]} {[%emt 00:00:04]} d6 {[%clk 01:31:04]}
{[%emt 00:00:17]} 3. d4 {[%clk 01:17:25]} {[%emt 00:01:43]} cxd4 {[%clk
01:31:27]} {[%emt 00:00:07]} 4. Nxd4 {[%clk 01:17:32]} {[%emt 00:00:23]} Nf6
{[%clk 01:31:50]} {[%emt 00:00:06]} 5. Nc3 {[%clk 01:17:59]} {[%emt 00:00:03]}
g6 {[%clk 01:32:11]} {[%emt 00:00:09]} 6. Be3 {[%clk 01:17:19]} {[%emt
00:01:11]} Nc6 {[%clk 01:32:30]} {[%emt 00:00:11]} 7. f3 {[%clk 01:16:51]}
{[%emt 00:00:58]} h5 {[%clk 01:32:44]} {[%emt 00:00:15]} 8. Qd2 {[%clk
01:14:33]} {[%emt 00:02:49]} Nxd4 {[%clk 01:32:39]} {[%emt 00:00:35]} 9. Bxd4
{[%clk 01:14:47]} {[%emt 00:00:17]} Bh6 {[%clk 01:33:00]} {[%emt 00:00:08]} 10.
Bb5+ {[%clk 01:15:06]} {[%emt 00:00:11]} Bd7 {[%clk 01:32:47]} {[%emt
00:00:43]} 11. Bxd7+ {[%clk 01:15:30]} {[%emt 00:00:06]} Nxd7 {[%clk 01:27:11]}
{[%emt 00:06:06]} 12. Qf2 {[%clk 01:10:51]} {[%emt 00:05:08]} O-O {[%clk
01:26:22]} {[%emt 00:01:19]} 13. O-O {[%clk 01:11:19]} {[%emt 00:00:03]} Qa5
{[%clk 01:11:46]} {[%emt 00:15:05]} 14. Nd5 {[%clk 01:10:31]} {[%emt 00:01:19]}
1/2-1/2